fUST/lending_fUST_20250901
["ID","MTS","AMOUNT","RATE_DAILY","PERIOD"]
[382596053,1756675849539,-480.0,0.00017328,2]
[382596055,1756675849549,-480.0,0.00017328,2]
[382596057,1756675849558,-480.0,0.00017328,2]
[382596059,1756675849570,-697.02,0.00017328,2]
[382596061,1756675849581,-880.22,0.00017328,2]
[382596063,1756675849591,-480.0,0.00017328,2]
[382596065,1756675849600,-787.46,0.00017328,2]
[382596067,1756675849610,-480.0,0.00017328,2]
[382596069,1756675849619,-772.07,0.00017328,2]
[382596071,1756675849629,-480.0,0.00017328,2]
[382596073,1756675849639,-480.0,0.00017328,2]
[382596075,1756675849649,-480.0,0.00017328,2]
[382596077,1756675849659,-710.36,0.00017328,2]
[382596079,1756675849668,-480.0,0.00017328,2]
[382596081,1756675849677,-722.24,0.00017328,2]
[382596082,1756675849687,-917.07,0.00017328,2]
[382596083,1756675849696,-480.0,0.00017328,2]
[382596084,1756675849706,-484.5321476,0.00017328,2]
[382596085,1756675849715,-866.78,0.00017328,2]
[382596086,1756675849725,-698.52,0.00017328,2]
[382596087,1756675849735,-698.03,0.00017328,2]
[382596088,1756675849744,-988.61,0.00017328,2]
[382596089,1756675849754,-480.0,0.00017328,2]
[382596090,1756675849764,-480.0,0.00017328,2]
[382596091,1756675849773,-480.0,0.00017328,2]
[382596092,1756675849783,-480.0,0.00017328,2]
[382596093,1756675849793,-762.2,0.00017328,2]
[382596094,1756675849803,-480.0,0.00017328,2]
[382596095,1756675849813,-1596.59,0.00017328,2]
[382596096,1756675849822,-1207.89,0.00017328,2]
[382596097,1756675849832,-733.38,0.00017328,2]
[382596098,1756675849841,-480.0,0.00017328,2]
[382596099,1756675849851,-480.0,0.00017328,2]
[382596100,1756675849860,-515.12,0.00017328,2]
[382596101,1756675849870,-923.88,0.00017328,2]
[382596102,1756675849879,-480.0,0.00017328,2]
[382596103,1756675849889,-530.77,0.00017328,2]
[382596104,1756675849899,-952.53,0.00017328,2]
[382596105,1756675849908,-480.0,0.00017328,2]
[382596106,1756675849917,-480.0,0.00017328,2]
[382596107,1756675849927,-480.0,0.00017328,2]
[382596108,1756675849936,-480.0,0.00017328,2]
[382596109,1756675849946,-622.12,0.00017328,2]
[382596110,1756675849958,-935.42,0.00017328,2]
[382596111,1756675849968,-753.19,0.00017328,2]
[382596112,1756675849977,-635.95,0.00017328,2]
[382596113,1756675849987,-480.0,0.00017328,2]
[382596114,1756675849997,-529.67188122,0.00017329,2]
[382596115,1756675850007,-799.68,0.00017329,2]
[382596116,1756675850018,-480.0,0.00017329,2]
[382596117,1756675850029,-347.88849794,0.00017329,2]
[382596118,1756675850039,-480.0,0.00017329,2]
[382596119,1756675850049,-508.32,0.00017329,2]
[382596120,1756675850058,-480.0,0.00017329,2]
[382596121,1756675850068,-480.0,0.00017329,2]
[382596122,1756675850078,-480.0,0.00017329,2]
[382596123,1756675850088,-480.0,0.00017329,2]
[382596124,1756675850097,-480.0,0.00017329,2]
[382596125,1756675850107,-480.0,0.00017329,2]
[382596126,1756675850117,-480.0,0.00017329,2]
[382596127,1756675850126,-480.0,0.00017329,2]
[382596128,1756675850136,-480.0,0.00017329,2]
[382596129,1756675850145,-480.0,0.00017329,2]
[382596130,1756675850155,-929.6,0.00017329,2]
[382596131,1756675850164,-880.96,0.00017329,2]
[382596132,1756675850174,-480.0,0.00017329,2]
[382596133,1756675850185,-480.0,0.00017329,2]
[382596134,1756675850195,-616.62766039,0.00017329,2]
[382596135,1756675850205,-480.0,0.00017329,2]
[382596136,1756675850214,-480.0,0.00017329,2]
[382596137,1756675850224,-480.0,0.00017329,2]
[382596138,1756675850234,-480.0,0.00017329,2]
[382596139,1756675850243,-913.56,0.00017329,2]
[382596141,1756675850256,-891.2,0.00017329,2]
[382596142,1756675850266,-480.0,0.00017329,2]
[382596143,1756675850275,-837.04,0.00017329,2]
[382596144,1756675850286,-480.0,0.00017329,2]
[382596146,1756675850296,-480.0,0.00017329,2]
[382596147,1756675850306,-480.0,0.00017329,2]
[382596149,1756675850317,-480.0,0.00017329,2]
[382596150,1756675850327,-480.0,0.00017329,2]
[382596151,1756675850336,-480.0,0.00017329,2]
[382596152,1756675850345,-578.12,0.00017329,2]
[382596154,1756675850356,-480.0,0.00017329,2]
[382596156,1756675850365,-480.0,0.00017329,2]
[382596158,1756675850375,-480.0,0.00017329,2]
[382596160,1756675850386,-540.78,0.00017329,2]
[382596162,1756675850396,-480.0,0.00017329,2]
[382596164,1756675850406,-488.09,0.00017329,2]
[382596166,1756675850416,-480.0,0.00017329,2]
[382596168,1756675850426,-480.0,0.00017329,2]
[382596170,1756675850436,-480.0,0.00017329,2]
[382596172,1756675850446,-480.0,0.00017329,2]
[382596174,1756675850457,-618.13,0.00017329,2]
[382596176,1756675850467,-717.91,0.00017329,2]
[382596178,1756675850477,-480.0,0.00017329,2]
[382596180,1756675850488,-485.34,0.00017329,2]
[382596182,1756675850498,-480.0,0.00017329,2]
[382596184,1756675850509,-707.45,0.00017329,2]
[382596186,1756675850519,-480.0,0.00017329,2]
[382596205,1756675850691,-480.0,0.00017329,2]
[382596207,1756675850701,-744.85,0.00017329,2]
[382596209,1756675850711,-987.14,0.00017329,2]
[382596211,1756675850720,-480.0,0.00017329,2]
[382596213,1756675850730,-500.0,0.00017329,2]
[382596215,1756675850739,-590.57,0.00017329,2]
[382596217,1756675850748,-480.0,0.00017329,2]
[382596219,1756675850757,-480.0,0.00017329,2]
[382596221,1756675850767,-480.0,0.00017329,2]
[382596223,1756675850776,-603.25,0.00017329,2]
[382596225,1756675850786,-480.0,0.00017329,2]
[382596227,1756675850795,-549.86,0.00017329,2]
[382596229,1756675850805,-480.0,0.00017329,2]
[382596231,1756675850815,-480.0,0.00017329,2]
[382596233,1756675850824,-480.0,0.00017329,2]
[382596235,1756675850833,-480.0,0.00017329,2]
[382596237,1756675850843,-480.0,0.00017329,2]
[382596239,1756675850852,-480.0,0.00017329,2]
[382596241,1756675850862,-480.0,0.00017329,2]
[382596243,1756675850871,-773.62,0.00017329,2]
[382596245,1756675850880,-480.0,0.00017329,2]
[382596247,1756675850890,-480.0,0.00017329,2]
[382596249,1756675850900,-480.0,0.00017329,2]
[382596251,1756675850910,-480.0,0.00017329,2]
[382596253,1756675850921,-480.0,0.00017329,2]
[382596255,1756675850930,-480.0,0.00017329,2]
[382596257,1756675850940,-480.0,0.00017329,2]
[382596259,1756675850954,-480.0,0.00017329,2]
[382596261,1756675850965,-500.0,0.00017331,2]
[382596263,1756675850974,-480.0,0.00017372,2]
[382596265,1756675850983,-480.0,0.00017372,2]
[382596267,1756675850993,-480.0,0.00017372,2]
[382596269,1756675851003,-480.0,0.00017372,2]
[382596271,1756675851012,-480.0,0.00017372,2]
[382596273,1756675851022,-480.0,0.00017372,2]
[382596275,1756675851031,-731.65,0.00017372,2]
[382596277,1756675851043,-728.1,0.00017372,2]
[382596279,1756675851052,-913.54,0.00017372,2]
[382596281,1756675851061,-536.58,0.00017372,2]
[382596283,1756675851071,-773.23,0.00017372,2]
[382596285,1756675851081,-480.0,0.00017372,2]
[382596287,1756675851091,-480.0,0.00017372,2]
[382596289,1756675851100,-415.47734393,0.00017372,2]
[382596291,1756675851110,-480.0,0.00017372,2]
[382596293,1756675851120,-480.0,0.00017372,2]
[382596295,1756675851129,-480.0,0.00017372,2]
[382596297,1756675851138,-480.0,0.00017372,2]
[382596299,1756675851147,-480.0,0.00017372,2]
[382596301,1756675851157,-480.0,0.00017372,2]
[382596303,1756675851166,-480.0,0.00017372,2]
[382596305,1756675851176,-500.0,0.00017373,2]
[382596307,1756675851185,-500.0,0.00017373,2]
[382596309,1756675851195,-500.75883026,0.00017373,2]
[382596311,1756675851204,-500.0,0.00017373,2]
[382596313,1756675851214,-500.0,0.00017373,2]
[382596315,1756675851223,-259.75959681,0.00017373,2]
[382596317,1756675851233,-500.0,0.00017373,2]
[382596319,1756675851242,-500.0,0.00017373,2]
[382596321,1756675851251,-500.0,0.00017373,2]
[382596323,1756675851261,-500.0,0.00017373,2]
[382596325,1756675851271,-500.0,0.00017373,2]
[382596327,1756675851280,-425.67429624,0.00017373,2]
[382596329,1756675851290,-500.0,0.00017373,2]
[382596331,1756675851299,-500.0,0.00017373,2]
[382596333,1756675851309,-500.0,0.00017373,2]
[382596335,1756675851319,-506.18279322,0.00017373,2]
[382596337,1756675851329,-500.0,0.00017373,2]
[382596339,1756675851339,-500.0,0.00017373,2]
[382596341,1756675851348,-500.0,0.00017373,2]
[382596343,1756675851357,-500.0,0.00017373,2]
[382596345,1756675851367,-500.0,0.00017373,2]
[382596347,1756675851377,-500.0,0.00017373,2]
[382596349,1756675851386,-161.22446423,0.00017373,2]
[382596351,1756675851395,-500.0,0.00017373,2]
[382596353,1756675851405,-500.0,0.00017373,2]
[382596355,1756675851414,-500.0,0.00017373,2]
[382596357,1756675851424,-500.0,0.00017373,2]
[382596359,1756675851434,-500.0,0.00017373,2]
[382596361,1756675851444,-500.0,0.00017373,2]
[382596363,1756675851453,-500.0,0.00017373,2]
[382596365,1756675851463,-381.0,0.00017407,2]
[382596367,1756675851473,-381.0,0.00017445,2]
[382596369,1756675851482,-381.0,0.00017455,2]
[382596371,1756675851491,-381.0,0.00017464,2]
[382596373,1756675851501,-172.91525719,0.00017546,2]
[382596375,1756675851511,-480.0,0.00017599,2]
[382596377,1756675851522,-480.0,0.00017599,2]
[382596379,1756675851531,-722.63,0.000176,2]
[382596381,1756675851540,-480.0,0.000176,2]
[382596383,1756675851550,-480.0,0.000176,2]
[382596385,1756675851559,-480.0,0.000176,2]
[382596388,1756675851576,-480.0,0.000176,2]
[382596390,1756675851585,-480.0,0.000176,2]
[382596392,1756675851595,-1344.28,0.000176,2]
[382596394,1756675851604,-480.0,0.000176,2]
[382596396,1756675851613,-480.0,0.000176,2]
[382596398,1756675851623,-2098.79470144,0.000176,2]
[382596400,1756675851632,-721.82,0.000176,2]
[382596402,1756675851642,-1160.18,0.000176,2]
[382596404,1756675851653,-480.0,0.000176,2]
[382596406,1756675851662,-480.0,0.000176,2]
[382596408,1756675851672,-480.0,0.000176,2]
[382596410,1756675851681,-1069.26,0.000176,2]
[382596412,1756675851690,-495.79,0.000176,2]
[382596414,1756675851699,-480.0,0.000176,2]
[382596416,1756675851708,-500.0,0.000176,2]
[382596418,1756675851718,-480.0,0.000176,2]
[382596420,1756675851727,-480.0,0.000176,2]
[382596422,1756675851736,-677.17,0.000176,2]
[382596424,1756675851745,-668.84,0.000176,2]
[382596426,1756675851755,-614.86,0.00017601,2]
[382596428,1756675851764,-480.0,0.00017601,2]
[382596430,1756675851773,-480.0,0.00017601,2]
[382596432,1756675851783,-480.0,0.00017601,2]
[382596434,1756675851792,-480.0,0.00017601,2]
[382596436,1756675851802,-480.0,0.00017601,2]
[382596438,1756675851812,-480.0,0.00017601,2]
[382596439,1756675851821,-480.0,0.00017601,2]
[382596441,1756675851831,-480.0,0.00017601,2]
[382596443,1756675851841,-480.0,0.00017601,2]
[382596445,1756675851852,-205.27419979,0.00017601,2]
[382596447,1756675851861,-480.0,0.00017601,2]
[382596449,1756675851871,-480.0,0.00017601,2]
[382596451,1756675851881,-942.49,0.00017601,2]
[382596453,1756675851891,-549.24,0.00017601,2]
[382596455,1756675851900,-480.0,0.00017601,2]
[382596457,1756675851911,-499.82,0.00017601,2]
[382596459,1756675851920,-646.4,0.00017601,2]
[382596461,1756675851930,-663.12,0.00017601,2]
[382596463,1756675851939,-533.25,0.00017601,2]
[382596465,1756675851952,-480.0,0.00017601,2]
[382596467,1756675851962,-480.0,0.00017601,2]
[382596469,1756675851972,-480.0,0.00017601,2]
[382596471,1756675851981,-480.0,0.00017601,2]
[382596473,1756675851991,-480.0,0.00017601,2]
[382596475,1756675852001,-854.56,0.00017601,2]
[382596477,1756675852011,-508.2,0.00017601,2]
[382596479,1756675852021,-480.0,0.00017601,2]
[382596481,1756675852031,-665.21,0.00017601,2]
[382596483,1756675852041,-480.0,0.00017601,2]
[382596485,1756675852051,-480.0,0.00017601,2]
[382596487,1756675852060,-480.0,0.00017601,2]
[382596490,1756675852071,-480.0,0.00017601,2]
[382596491,1756675852081,-263.60403574,0.00017601,2]
[382596513,1756675852273,-311.67596426,0.00017601,2]
[382596515,1756675852283,-480.0,0.00017601,2]
[382596517,1756675852294,-216.32403574,0.00017601,2]
[382596519,1756675852305,-263.67596426,0.00017601,2]
[382596521,1756675852315,-374.87403574,0.00017601,2]
[382596523,1756675852326,-197.64596426,0.00017601,2]
[382596525,1756675852336,-369.69740259,0.00017601,2]
[382596527,1756675852347,-110.30259741,0.00017601,2]
[382596529,1756675852358,-480.0,0.00017601,2]
[382596531,1756675852367,-480.0,0.00017601,2]
[382596534,1756675852380,-67.89740269,0.00017601,2]
[382596536,1756675852396,-295.00440934,0.00017601,2]
[382596556,1756675852575,-298.0388778,0.00016505,2]
[382596558,1756675852589,-181.9611222,0.00016505,2]
[382596560,1756675852602,-254.69818797,0.00017601,2]
[382596563,1756675852614,-637.0,0.00017601,2]
[382596565,1756675852625,-712.38,0.00017601,2]
[382596567,1756675852638,-480.0,0.00017601,2]
[382596569,1756675852651,-4115.77,0.00017601,2]
[382596572,1756675852663,-480.0,0.00017601,2]
[382596574,1756675852675,-614.41,0.00017601,2]
[382596576,1756675852686,-594.03068983,0.00017601,2]
[382596614,1756675853060,-480.0,0.00016505,2]
[382596617,1756675853071,-480.0,0.00016507,2]
[382596619,1756675853082,-54.38751074,0.00016507,2]
[382596622,1756675853101,-425.61248926,0.00016507,2]
[382596624,1756675853113,-480.0,0.00016779,2]
[382596626,1756675853123,-200.80201523,0.00016779,2]
[382596633,1756675853180,-51.06636573,0.00016779,2]
[382596635,1756675853193,-228.13161904,0.00016779,2]
[382596637,1756675853205,-312.51465805,0.00016781,2]
[382596640,1756675853224,-167.48534195,0.00016781,2]
[382596643,1756675853235,-480.0,0.00017053,2]
[382596645,1756675853245,-480.0,0.00017053,2]
[382596647,1756675853256,-480.0,0.00017055,2]
[382596649,1756675853267,-275.8,0.00017327,2]
[382596651,1756675853279,-480.0,0.00017327,2]
[382596653,1756675853289,-582.88,0.00017601,2]
[382596655,1756675853300,-480.0,0.00017601,2]
[382596658,1756675853311,-480.0,0.00017601,2]
[382596660,1756675853322,-273.36889784,0.00017601,2]
[382596662,1756675853333,-414.38807977,0.00017601,2]
[382596664,1756675853344,-810.06,0.00017601,2]
[382596666,1756675853355,-655.66,0.00017601,2]
[382596668,1756675853366,-1499.22,0.00017601,2]
[382596670,1756675853377,-625.4,0.00017601,2]
[382596673,1756675853387,-480.0,0.00017601,2]
[382596675,1756675853399,-697.17,0.00017601,2]
[382596677,1756675853410,-480.0,0.00017601,2]
[382596678,1756675853420,-662.67,0.00017601,2]
[382596679,1756675853431,-990.81,0.00017601,2]
[382596680,1756675853442,-2638.18,0.00017601,2]
[382596681,1756675853453,-586.77,0.00017601,2]
[382596682,1756675853463,-480.0,0.00017601,2]
[382596683,1756675853474,-480.0,0.00017601,2]
[382596684,1756675853485,-480.0,0.00017601,2]
[382596685,1756675853496,-2509.4479064,0.00017601,2]
[382596979,1756675856602,-480.0,0.00016504,2]
[382596981,1756675856611,-480.0,0.00016504,2]
[382596983,1756675856620,-480.0,0.00016505,2]
[382596985,1756675856630,-480.0,0.00016505,2]
[382596987,1756675856640,-480.0,0.00016505,2]
[382596989,1756675856649,-480.0,0.00016505,2]
[382596991,1756675856659,-480.0,0.00016778,2]
[382596993,1756675856669,-480.0,0.00016778,2]
[382596995,1756675856678,-480.0,0.00016779,2]
[382596997,1756675856687,-480.0,0.00016779,2]
[382596999,1756675856696,-480.0,0.00016779,2]
[382597001,1756675856706,-488.72,0.00017052,2]
[382597003,1756675856716,-179.59,0.00017052,2]
[382597005,1756675856726,-480.0,0.00017053,2]
[382597007,1756675856735,-480.0,0.00017053,2]
[382597009,1756675856745,-480.0,0.00017327,2]
[382597011,1756675856754,-480.0,0.00017327,2]
[382597013,1756675856763,-480.0,0.00017329,2]
[382597015,1756675856772,-304.98647307,0.00017601,2]
[382597018,1756675856791,-675.88562053,0.00017601,2]
[382597020,1756675856801,-1188.84,0.00017601,2]
[382597022,1756675856810,-487.97,0.00017601,2]
[382597024,1756675856820,-480.0,0.00017601,2]
[382597026,1756675856830,-480.0,0.00017601,2]
[382597028,1756675856839,-185.44606378,0.00017601,2]
[382597030,1756675856851,-468.12393622,0.00017601,2]
[382597032,1756675856861,-617.61,0.00017601,2]
[382597034,1756675856870,-480.0,0.00017601,2]
[382597036,1756675856880,-2243.0084956,0.00017601,2]
[382598302,1756675872046,280.965522,0.00015641,2]
[382599679,1756675886513,971.991481,0.00013699,2]
[382602164,1756675914496,667.21696867,0.00016406,2]
[382602278,1756675928695,1636.72974291,0.00016404,2]
[382602279,1756675928723,10000.01,0.00016404,2]
[382602280,1756675928751,10000.01,0.00016404,2]
[382602281,1756675928779,713.50139348,0.00016404,2]
[382602313,1756675979783,-300.0,0.00016502,2]
[382602314,1756675979821,-414.0,0.00016502,2]
[382602315,1756675979857,-480.0,0.00016503,2]
[382602316,1756675979890,-480.0,0.00016503,2]
[382602317,1756675979923,-480.0,0.00016503,2]
[382602318,1756675979953,-480.0,0.00016503,2]
[382602319,1756675979988,-480.0,0.00016503,2]
[382602320,1756675980020,-480.0,0.00016503,2]
[382602321,1756675980052,-480.0,0.00016503,2]
[382602322,1756675980084,-480.0,0.00016503,2]
[382602323,1756675980119,-412.01,0.00016503,2]
[382602324,1756675980369,-67.99,0.00016503,2]
[382602325,1756675980402,-480.0,0.00016503,2]
[382602326,1756675980435,-920.88,0.00016503,2]
[382602327,1756675980469,-404.65764314,0.00016503,2]
[382602328,1756675980501,-492.2747479,0.00016503,2]
[382602329,1756675980534,-480.0,0.00016503,2]
[382602330,1756675980565,-480.0,0.00016503,2]
[382602331,1756675980596,-480.0,0.00016503,2]
[382602332,1756675980627,-480.0,0.00016503,2]
[382602333,1756675980657,-480.0,0.00016503,2]
[382602334,1756675980944,-488.71,0.00016503,2]
[382602335,1756675980975,-480.0,0.00016503,2]
[382602336,1756675981009,-454.39174437,0.00016503,2]
[382602337,1756675981040,-480.0,0.00016503,2]
[382602338,1756675981074,-632.91,0.00016503,2]
[382602339,1756675981104,-480.0,0.00016503,2]
[382602340,1756675981136,-480.0,0.00016503,2]
[382602341,1756675981169,-480.0,0.00016503,2]
[382602342,1756675981201,-654.44,0.00016503,2]
[382602343,1756675981232,-259.10651126,0.00016503,2]
[382602344,1756675981276,-220.89348874,0.00016503,2]
[382602345,1756675981307,-480.0,0.00016503,2]
[382602346,1756675981339,-509.43,0.00016503,2]
[382602347,1756675981371,-480.0,0.00016504,2]
[382602348,1756675981402,-480.0,0.00016504,2]
[382602349,1756675981433,-480.0,0.00016504,2]
[382602350,1756675981464,-480.0,0.00016504,2]
[382602351,1756675981495,-480.0,0.00016504,2]
[382602352,1756675981527,-507.38,0.00016504,2]
[382602353,1756675981557,-488.94,0.00016504,2]
[382602354,1756675981588,-207.27302252,0.00016504,2]
[382602355,1756675981743,-372.17697748,0.00016504,2]
[382602356,1756675981775,-480.0,0.00016504,2]
[382602357,1756675981806,-3232.58923064,0.00016504,2]
[382602358,1756675981839,-583.71,0.00016504,2]
[382602359,1756675982039,-118.38758376,0.00016504,2]
[382602360,1756675982211,-426.28241624,0.00016504,2]
[382602361,1756675982245,-480.0,0.00016504,2]
[382602362,1756675982279,-480.0,0.00016505,2]
[382602363,1756675982311,-480.0,0.00016505,2]
[382602364,1756675982345,-480.0,0.00016505,2]
[382602365,1756675982378,-480.0,0.00016505,2]
[382602366,1756675982412,-480.0,0.00016505,2]
[382602367,1756675982445,-480.0,0.00016505,2]
[382602368,1756675982480,-480.0,0.00016505,2]
[382602369,1756675982514,-480.0,0.00016505,2]
[382602370,1756675982693,-3745.95,0.00016505,2]
[382602371,1756675982727,-480.0,0.00016505,2]
[382602372,1756675982759,-480.0,0.00016505,2]
[382602373,1756675982790,-108.11,0.00016505,2]
[382602374,1756675982933,-371.89,0.00016505,2]
[382602375,1756675982964,-663.7,0.00016505,2]
[382602376,1756675983000,-1573.83,0.00016505,2]
[382602377,1756675983032,-741.42,0.00016505,2]
[382602378,1756675983066,-480.0,0.00016505,2]
[382602379,1756675983099,-480.0,0.00016505,2]
[382602380,1756675983132,-556.36,0.00016505,2]
[382602381,1756675983313,-928.07,0.00016505,2]
[382602382,1756675983347,-480.0,0.00016505,2]
[382602383,1756675983383,-1806.46,0.00016505,2]
[382602384,1756675983416,-480.0,0.00016505,2]
[382602385,1756675983449,-480.0,0.00016505,2]
[382602394,1756675990135,161.396463,0.00025,30]
[382602403,1756675993484,5000.0,0.000165,2]
[382602405,1756676002436,5000.0,0.000165,2]
[382602407,1756676010831,0.01,0.000165,2]
[382602408,1756676010856,4999.99,0.000165,2]
[382602412,1756676041281,5000.0,0.000165,2]
[382602413,1756676054300,0.02,0.00016403,2]
[382602414,1756676054328,211.27071055,0.00016403,2]
[382602415,1756676054590,211.29071054,0.00016405,2]
[382602416,1756676069930,-300.0,0.00016502,2]
[382602417,1756676069965,-480.0,0.00016503,2]
[382602418,1756676070002,-480.0,0.00016503,2]
[382602419,1756676070039,-480.0,0.00016503,2]
[382602420,1756676070072,-480.0,0.00016503,2]
[382602421,1756676070109,-480.0,0.00016503,2]
[382602422,1756676070144,-480.0,0.00016503,2]
[382602423,1756676070179,-480.0,0.00016504,2]
[382602424,1756676070212,-664.86,0.00016504,2]
[382602425,1756676070244,-480.0,0.00016504,2]
[382602426,1756676070409,-480.0,0.00016503,2]
[382602427,1756676070443,-3780.84,0.00016504,2]
[382602428,1756676070613,-2444.35,0.00016504,2]
[382602429,1756676070646,-710.53,0.00016504,2]
[382602430,1756676070682,-709.66,0.00016504,2]
[382602431,1756676070715,-941.16,0.00016504,2]
[382602432,1756676070851,-480.0,0.00016504,2]
[382602433,1756676070884,-629.41,0.00016505,2]
[382602434,1756676070919,-2763.17,0.00016505,2]
[382602435,1756676070952,-480.0,0.00016505,2]
[382602436,1756676070983,-480.0,0.00016505,2]
[382602437,1756676071115,-480.0,0.00016503,2]
[382602438,1756676071149,-480.0,0.00016505,2]
[382602439,1756676071185,-480.0,0.00016505,2]
[382602440,1756676071218,-480.0,0.00016505,2]
[382602441,1756676071251,-659.12,0.00016505,2]
[382602442,1756676071285,-896.98,0.00016505,2]
[382602443,1756676071319,-831.31,0.00016505,2]
[382602444,1756676071351,-480.0,0.00016505,2]
[382602445,1756676071516,-480.0,0.00016505,2]
[382602446,1756676071550,-480.0,0.00016505,2]
[382602447,1756676071582,-480.0,0.00016505,2]
[382602448,1756676071616,-480.0,0.00016505,2]
[382602450,1756676071651,-480.0,0.00016505,2]
[382602452,1756676071686,-736.91,0.00016505,2]
[382602453,1756676071718,-480.0,0.00016505,2]
[382602454,1756676071750,-480.0,0.00016505,2]
[382602455,1756676071783,-845.13,0.00016505,2]
[382602456,1756676072144,-480.0,0.00016505,2]
[382602457,1756676072179,-480.0,0.00016505,2]
[382602458,1756676072212,-728.88,0.00016505,2]
[382602459,1756676072247,-777.66,0.00016505,2]
[382602460,1756676072280,-500.0,0.00016505,2]
[382602461,1756676072314,-500.0,0.00016505,2]
[382602462,1756676072349,-500.0,0.00016505,2]
[382602463,1756676072383,-500.0,0.00016505,2]
[382602464,1756676072419,-500.0,0.00016505,2]
[382602465,1756676072644,-500.0,0.00016505,2]
[382602466,1756676072682,-236.00526607,0.00016505,2]
[382602467,1756676072720,-500.0,0.00016505,2]
[382602468,1756676072755,-267.81421774,0.00016505,2]
[382602469,1756676072792,-500.0,0.00016505,2]
[382602470,1756676072830,-500.0,0.00016505,2]
[382602471,1756676072866,-500.0,0.00016505,2]
[382602472,1756676072902,-518.44,0.00016505,2]
[382602473,1756676072937,-480.0,0.00016505,2]
[382602474,1756676072973,-480.0,0.00016505,2]
[382602475,1756676073011,-480.0,0.00016505,2]
[382602476,1756676073260,-813.86,0.00016505,2]
[382602477,1756676073295,-480.0,0.00016505,2]
[382602478,1756676073331,-627.66,0.00016505,2]
[382602479,1756676073366,-480.0,0.00016505,2]
[382602480,1756676073401,-480.0,0.00016505,2]
[382602481,1756676073435,-480.0,0.00016505,2]
[382602482,1756676073469,-480.0,0.00016505,2]
[382602483,1756676073504,-480.0,0.00016505,2]
[382602484,1756676073540,-480.0,0.00016505,2]
[382602485,1756676074326,10000.01,0.00016404,2]
[382602486,1756676074356,10000.01,0.00016404,2]
[382602487,1756676074385,10000.01,0.00016404,2]
[382602488,1756676074413,10000.01,0.00016404,2]
[382602489,1756676074437,53428.89219399,0.00016404,2]
[382602507,1756676206471,837.35160278,0.00016405,2]
[382602510,1756676225261,-300.0,0.00016502,2]
[382602511,1756676225300,-480.0,0.00016503,2]
[382602512,1756676225340,-480.0,0.00016503,2]
[382602513,1756676225376,-480.0,0.00016503,2]
[382602514,1756676225412,-480.0,0.00016503,2]
[382602515,1756676225448,-480.0,0.00016503,2]
[382602516,1756676225486,-480.0,0.00016503,2]
[382602517,1756676225524,-480.0,0.00016503,2]